bitfinex/quotes_BTCUSD_20260315
["timestamp","ask_amount","ask_price","bid_price","bid_amount"]
[1773534215929,0.1028901,71036.0,71024.0,0.0014]
[1773534216152,0.03228229,71035.0,71024.0,0.0014]
[1773534216352,0.07038882,71034.0,71022.0,0.07040072]
[1773534216555,0.03228229,71033.0,71022.0,0.07040072]
[1773534218445,0.0703908,71032.0,71022.0,0.07040072]
[1773534220409,0.03228229,71031.0,71022.0,0.07040072]
[1773534221690,0.07039279,71030.0,71022.0,0.07040072]
[1773534221994,0.07039279,71030.0,71021.0,0.00027531]
[1773534222195,0.03228229,71029.0,71021.0,0.07067678]
[1773534224012,0.07039477,71028.0,71021.0,0.07067678]
[1773534224849,0.07039477,71028.0,71021.0,0.00027531]
[1773534225573,0.07039477,71028.0,71021.0,0.00047531]
[1773534226986,0.03228229,71027.0,71021.0,0.00047531]
[1773534227923,0.07039675,71026.0,71016.0,0.07040629]
[1773534228088,0.07050442,71026.0,71016.0,0.07180629]
[1773534228284,0.03228229,71025.0,71015.0,0.0002]
[1773534228487,0.03228229,71025.0,71015.0,0.07060754]
[1773534228814,0.03228229,71025.0,71015.0,0.0002]
[1773534229345,0.03228229,71025.0,71015.0,0.07060765]
[1773534230431,0.07039873,71024.0,71015.0,0.07060765]
[1773534230945,0.03347741,71023.0,71015.0,0.0002]
[1773534231982,0.03347741,71023.0,71015.0,0.07060737]
[1773534232538,0.07040072,71022.0,71015.0,0.07060737]
[1773534232943,0.07040072,71022.0,71007.0,0.07041559]
[1773534233630,0.07040072,71022.0,71007.0,0.07181559]
[1773534234248,0.07040072,71022.0,71007.0,0.10661964]
[1773534234464,0.07040072,71022.0,71015.0,0.0002]
[1773534234644,0.10697048,71023.0,71011.0,0.07041127]
[1773534235201,0.10697048,71023.0,71011.0,0.07051967]
[1773534235939,0.0014,71022.0,71011.0,0.07051967]
[1773534241724,0.07040171,71021.0,71011.0,0.07071967]
[1773534248260,0.0014,71020.0,71011.0,0.07071967]
[1773534249231,0.07040369,71019.0,71011.0,0.07071967]
[1773534255203,0.07040369,71019.0,71011.0,0.0003084]
[1773534264431,0.07040369,71019.0,71007.0,0.0014]
[1773534264634,0.07040369,71019.0,71007.0,0.07181559]
[1773534264836,0.07040369,71019.0,71005.0,0.05594107]
[1773534265168,0.07040369,71019.0,71007.0,0.0014]
[1773534265793,0.07040369,71019.0,71005.0,0.05594107]
[1773534265989,0.07040369,71019.0,71011.0,0.0002]
[1773534266288,0.0706237,71019.0,71011.0,0.0002]
[1773534271739,0.0706237,71019.0,71007.0,0.0014]
[1773534271904,0.0706237,71019.0,71008.0,0.0704146]
[1773534273715,0.0706237,71019.0,71007.0,0.07181497]
[1773534274314,0.0014,71020.0,71007.0,0.07181497]
[1773534274524,0.03020546,71044.0,71013.0,0.03505636]
[1773534274726,0.03020546,71044.0,71015.0,0.03505636]
[1773534274727,0.05945211,71040.0,71015.0,0.03505636]
[1773534274930,0.03602463,71038.0,71015.0,0.03505636]
[1773534275105,0.00022001,71019.0,71015.0,0.03505636]
[1773534275334,0.00022001,71027.0,71015.0,0.03505636]
[1773534276348,0.07039675,71026.0,71016.0,0.07040666]
[1773534276567,0.07039675,71026.0,71017.0,0.03505636]
[1773534280111,0.07039675,71026.0,71018.0,0.07040468]
[1773534281180,0.07508693,71025.0,71018.0,0.07040468]
[1773534282343,0.07508693,71025.0,71018.0,0.10546104]
[1773534283748,0.07508693,71025.0,71016.0,0.07040666]
[1773534283749,0.03643974,71050.0,71017.0,2.351566]
[1773534283951,0.0014,71050.0,71030.0,0.05945211]
[1773534284128,0.0014,71050.0,71031.0,0.0014]
[1773534284327,0.03742463,71050.0,71031.0,0.0014]
[1773534284534,0.03742463,71050.0,71031.0,0.03645636]
[1773534284709,0.0018868,71049.0,71031.0,0.03505636]
[1773534284909,0.0018868,71049.0,71031.0,0.03645636]
[1773534285749,0.0018868,71049.0,71007.0,0.21064252]
[1773534285750,0.0705577,71061.0,71048.0,0.03505636]
[1773534285966,0.0005468,71083.0,71047.0,0.07037594]
[1773534285967,0.0001951,71072.0,71052.0,1.430105]
[1773534286167,0.07054713,71072.0,71055.0,0.03505636]
[1773534286470,0.07054713,71072.0,71057.0,0.03505636]
[1773534286989,0.07065492,71072.0,71057.0,0.03505636]
[1773534287154,0.07065492,71072.0,71056.0,0.0014]
[1773534287155,0.03602463,71078.0,71056.0,0.0014]
[1773534287156,0.0003517,71083.0,71063.0,0.03505636]
[1773534287368,0.0003517,71083.0,71071.0,0.03505636]
[1773534287369,0.00071071,71083.0,71071.0,0.03505636]
[1773534287534,0.00071071,71083.0,71073.0,0.03505636]
[1773534287728,0.07033577,71088.0,71075.0,0.03505636]
[1773534287729,0.0014,71088.0,71075.0,0.03505636]
[1773534287932,0.0014,71088.0,71075.0,0.03541537]
[1773534288944,0.00022001,71080.0,71075.0,0.03541537]
[1773534290566,0.00022001,71080.0,71077.0,0.04174051]
[1773534291162,0.00022001,71080.0,71076.0,0.07034723]
[1773534296253,0.00022001,71083.0,71076.0,0.07034723]
[1773534296454,0.00022001,71083.0,71076.0,0.1128879]
[1773534299179,0.00022001,71083.0,71076.0,0.07034723]
[1773534301155,0.00022001,71083.0,71072.0,0.0014]
[1773534301439,0.00022001,71083.0,71069.0,0.07035376]
[1773534301440,0.04143317,71082.0,71069.0,0.07035376]
[1773534301774,0.04143317,71082.0,71069.0,0.07175376]
[1773534302341,0.07034228,71081.0,71069.0,0.0014]
[1773534302708,0.04143317,71080.0,71067.0,0.07035579]
[1773534304089,0.04143317,71080.0,71067.0,0.07175579]
[1773534304488,0.07034426,71079.0,71067.0,0.07175579]
[1773534308832,0.07034228,71081.0,71067.0,0.07175579]
[1773534309190,0.07034228,71081.0,71068.0,0.04254067]
[1773534310924,0.07034228,71081.0,71069.0,0.07035416]
[1773534311195,0.07091979,71083.0,71071.0,0.04254067]
[1773534311638,0.07053696,71090.0,71071.0,0.04254067]
[1773534311639,0.0703358,71088.0,71071.0,0.04254067]
[1773534311819,0.07055641,71087.0,71071.0,0.04289968]
[1773534313287,0.07055641,71087.0,71073.0,0.04254067]
[1773534313470,0.07055641,71087.0,71074.0,0.04394067]
[1773534315197,0.07055641,71087.0,71075.0,0.07034822]
[1773534322635,0.0703358,71088.0,71075.0,0.07034822]
[1773534324658,0.07033733,71086.0,71075.0,0.07034822]
[1773534325956,0.07033733,71086.0,71076.0,0.04432734]
[1773534327130,0.07033733,71086.0,71077.0,0.07034624]
[1773534328379,0.07033733,71086.0,71075.0,0.07034822]
[1773534328584,0.07033733,71086.0,71075.0,0.07174822]
[1773534328988,0.07033733,71086.0,71075.0,0.07034822]
[1773534329141,0.07033733,71086.0,71075.0,0.07174822]
[1773534330389,0.07033733,71086.0,71075.0,0.07034822]
[1773534330592,0.07033733,71086.0,71075.0,0.07174822]
[1773534331311,0.07033733,71086.0,71075.0,0.07194822]
[1773534331622,0.07053663,71090.0,71075.0,0.07194822]
[1773534331623,0.07031557,71108.0,71078.0,0.04432734]
[1773534331778,0.07031557,71108.0,71077.0,1.466334]
[1773534331779,0.0014,71107.0,71090.0,0.05935411]
[1773534331993,0.07031557,71108.0,71077.0,0.16666002]
[1773534331994,0.03539723,71105.0,71089.0,0.0014]
[1773534332783,0.03539723,71105.0,71088.0,0.0014]
[1773534333193,0.03539723,71105.0,71089.0,0.07033436]
[1773534333194,0.07031854,71105.0,71089.0,0.07033436]
[1773534333400,0.0014,71110.0,71091.0,0.04432734]
[1773534334013,0.07031162,71112.0,71091.0,0.04432734]
[1773534334209,0.0014,71109.0,71091.0,0.04453854]
[1773534336185,0.07031557,71108.0,71092.0,0.0703314]
[1773534336345,0.07031557,71108.0,71093.0,0.04432734]
[1773534336548,0.07031557,71108.0,71094.0,0.04572734]
[1773534337532,0.07042323,71108.0,71094.0,0.04572734]
[1773534338232,0.07042323,71108.0,71096.0,0.04432734]
[1773534338644,0.07969074,71118.0,71100.0,0.04432734]
[1773534338870,0.07969074,71118.0,71109.0,0.04432734]
[1773534338871,0.00022001,71117.0,71109.0,0.04432734]
[1773534339669,0.07030074,71123.0,71109.0,0.04432734]
[1773534340078,1.07029213,71132.0,71114.0,0.04432734]
[1773534340383,1.07169213,71132.0,71121.0,0.04432734]
[1773534340589,1.07169213,71132.0,71121.0,0.04417738]
[1773534340889,1.07029213,71132.0,71121.0,0.04417738]
[1773534341258,1.07029213,71132.0,71121.0,0.04402743]
[1773534342172,1.07029213,71132.0,71122.0,0.07030173]
[1773534342488,1.07029213,71132.0,71121.0,0.1143295]
[1773534342651,0.04400648,71131.0,71108.0,0.04432734]
[1773534342843,0.04400648,71128.0,71109.0,0.0014]
[1773534343042,0.04400648,71126.0,71108.0,0.0014]
[1773534343486,0.04400648,71126.0,71104.0,0.04432734]
[1773534343684,0.04400648,71126.0,71108.0,0.0014]
[1773534343990,0.04400648,71126.0,71104.0,0.04432734]
[1773534344190,0.07029876,71125.0,71107.0,0.07031656]
[1773534344374,0.07029876,71125.0,71111.0,0.04432734]
[1773534346670,0.07029876,71125.0,71112.0,0.07031162]
[1773534348887,0.07029876,71125.0,71110.0,0.07031283]
[1773534350713,0.07029876,71125.0,71110.0,0.1296084]
[1773534353881,0.07029876,71125.0,71110.0,0.17434209]
[1773534354171,0.07029876,71125.0,71110.0,0.17419213]
[1773534354323,0.07051877,71125.0,71110.0,0.17419213]
[1773534354831,0.07051877,71125.0,71111.0,0.04473369]
[1773534356070,0.07051877,71125.0,71110.0,0.12945844]
[1773534356639,0.07051877,71125.0,71110.0,0.07016287]
[1773534358493,0.07051877,71125.0,71110.0,0.12945844]
[1773534359212,0.07051877,71125.0,71111.0,0.04473369]
[1773534359413,0.07191877,71125.0,71111.0,0.04473369]
[1773534359593,0.00022001,71125.0,71113.0,0.04473369]
[1773534359773,0.00022001,71125.0,71115.0,0.04473369]
[1773534359774,0.07051951,71125.0,71115.0,0.04473369]
[1773534360401,1.0,71132.0,71115.0,0.10402926]
[1773534360719,1.00010762,71132.0,71123.0,0.04473369]
[1773534360875,1.00010762,71132.0,71122.0,0.05929557]
[1773534360876,0.07028496,71139.0,71125.0,0.04473369]
[1773534361083,0.00022001,71140.0,71127.0,0.04473369]
[1773534361291,0.07050403,71140.0,71130.0,0.05929557]
[1773534361890,0.07050403,71140.0,71131.0,0.07169283]
[1773534362488,0.00022001,71133.0,71131.0,0.07169283]
[1773534363310,0.00022001,71140.0,71131.0,0.07169283]
[1773534365045,0.07050418,71140.0,71131.0,0.07169283]
[1773534368328,0.07050418,71140.0,71131.0,0.071393]
[1773534369150,0.60236773,71142.0,71132.0,0.02706253]
[1773534370920,0.70635556,71152.0,71132.0,0.02706253]
[1773534371097,0.07025783,71167.0,71131.0,0.071593]
[1773534371098,0.97251613,71162.0,71143.0,0.07028098]
[1773534371299,0.97251613,71162.0,71150.0,0.05929557]
[1773534371606,0.97251613,71162.0,71144.0,0.0014]
[1773534371607,0.05665398,71161.0,71144.0,0.0014]
[1773534372009,0.05805398,71160.0,71144.0,0.0014]
[1773534372375,0.05841263,71160.0,71144.0,0.0014]
[1773534372571,0.05855833,71160.0,71144.0,0.0014]
[1773534372774,1.00035126,71172.0,71151.0,0.01407862]
[1773534373011,1.00035126,71172.0,71144.0,0.0014]
[1773534373012,0.00035867,71171.0,71161.0,0.05929557]
[1773534373218,1.00035126,71172.0,71161.0,0.05929557]
[1773534373219,1.00035126,71172.0,71162.0,0.07166221]
[1773534373519,1.00035126,71172.0,71162.0,0.07176978]
[1773534374019,1.00035126,71172.0,71163.0,0.00832943]
[1773534374224,1.00035126,71172.0,71162.0,0.07176978]
[1773534374520,0.96819415,71172.0,71162.0,0.07176978]
[1773534374815,0.07062678,71188.0,71172.0,0.13900561]
[1773534375021,0.07062678,71188.0,71173.0,0.0014]
[1773534375022,0.07023919,71186.0,71173.0,0.0014]
[1773534375320,0.07023796,71187.0,71174.0,0.0014]
[1773534375486,0.07023887,71186.0,71174.0,0.0014]
[1773534375886,0.07023796,71187.0,71174.0,0.0014]
[1773534376105,0.96705953,71182.0,71174.0,0.0014]
[1773534376420,0.83269706,71182.0,71174.0,0.0014]
[1773534376657,0.2365448,71192.0,71174.0,0.0014]
[1773534376835,0.30677769,71192.0,71180.0,0.05929557]
[1773534376990,0.30677769,71192.0,71181.0,0.0014]
[1773534377193,0.30677769,71192.0,71182.0,0.07024247]
[1773534377194,0.2365448,71192.0,71182.0,0.07024247]
[1773534377634,0.2365448,71192.0,71182.0,0.07009267]
[1773534377937,0.00022001,71187.0,71182.0,0.07009267]
[1773534378131,0.30677799,71192.0,71182.0,0.07009267]
[1773534379486,0.30677799,71192.0,71181.0,0.07149285]
[1773534379688,0.30677799,71192.0,71165.0,0.154516]
[1773534379689,0.07230992,71191.0,71165.0,0.154516]
[1773534379889,0.07230992,71191.0,71169.0,0.01607047]
[1773534380196,0.30817799,71192.0,71166.0,0.0014]
[1773534380197,0.30677776,71192.0,71174.0,0.547484]
[1773534380543,0.30677776,71192.0,71175.0,0.01747047]
[1773534381798,0.30677776,71192.0,71176.0,0.07024839]
[1773534382021,0.30677776,71192.0,71176.0,0.08676876]
[1773534383251,0.38595768,71192.0,71176.0,0.07024839]
[1773534383635,0.07917992,71191.0,71176.0,0.07024839]
[1773534384172,0.07023458,71190.0,71177.0,0.0014]
[1773534384538,0.07023458,71190.0,71174.0,0.07024839]
[1773534384745,0.07023458,71190.0,71175.0,0.0014]
[1773534385225,0.07023458,71190.0,71175.0,0.0016]
[1773534386338,0.07023458,71190.0,71176.0,0.07024839]
[1773534387159,0.07023458,71190.0,71177.0,0.0014]
[1773534387363,0.1494145,71190.0,71177.0,0.0014]
[1773534387906,0.07507951,71188.0,71172.0,0.07025186]
[1773534388058,0.07917992,71187.0,71173.0,0.0014]
[1773534388650,0.07917992,71187.0,71174.0,0.0014]
[1773534388651,0.07917992,71185.0,71174.0,0.0014]
[1773534389307,0.07917992,71185.0,71170.0,0.0014]
[1773534392198,0.07917992,71183.0,71171.0,0.07025333]
[1773534394968,0.07917992,71181.0,71171.0,0.0002]
[1773534395529,0.07917992,71181.0,71171.0,0.0016]
[1773534395947,0.07917992,71181.0,71171.0,0.0002]
[1773534396159,0.07917992,71181.0,71171.0,0.0016]
[1773534396563,0.07917992,71181.0,71172.0,0.0014]
[1773534396961,0.07917992,71181.0,71172.0,0.07025234]
[1773534396962,0.14942436,71181.0,71172.0,0.07025234]
[1773534400442,0.0702405,71184.0,71172.0,0.07025234]
[1773534400682,0.0702405,71187.0,71172.0,0.07025234]
[1773534402352,0.07917992,71193.0,71177.0,0.05918169]
[1773534402556,1.0,71200.0,71185.0,0.05918169]
[1773534402557,0.0702265,71199.0,71185.0,0.05918169]
[1773534402781,0.0702265,71199.0,71190.0,0.05918169]
[1773534402989,1.00938979,71200.0,71190.0,0.05918169]
[1773534403181,0.93020987,71200.0,71190.0,0.05918169]
[1773534403796,0.9303174,71200.0,71190.0,0.05918169]
[1773534404308,0.00022001,71192.0,71190.0,0.05918169]
[1773534404472,0.93031748,71200.0,71191.0,0.07023359]
[1773534404671,0.93053749,71200.0,71191.0,0.07023359]
[1773534405305,0.16354208,71200.0,71191.0,0.07023359]
[1773534405510,0.14140812,71200.0,71191.0,0.07023359]
[1773534405709,0.07020894,71216.0,71194.0,0.4706]
[1773534405863,0.07020894,71216.0,71206.0,0.05918169]
[1773534406063,0.07020894,71216.0,71206.0,0.00010753]
[1773534406607,0.07338305,71217.0,71206.0,0.00010753]
[1773534406608,0.07198218,71217.0,71206.0,0.00010753]
[1773534408204,0.07972315,71216.0,71184.0,0.16666002]
[1773534408446,0.08057992,71215.0,71185.0,0.0716394]
[1773534408645,0.08057992,71215.0,71186.0,0.0014]
[1773534408646,0.07917992,71213.0,71186.0,0.0014]
[1773534409624,0.04070617,71213.0,71184.0,0.0034]
[1773534409851,0.04070617,71213.0,71179.0,0.0001512]
[1773534409852,0.08331558,71212.0,71181.0,0.0014]
[1773534410563,0.07021584,71209.0,71182.0,0.07024247]
[1773534410753,0.08331558,71208.0,71182.0,0.07024247]
[1773534411128,0.08331558,71206.0,71182.0,0.07024247]
[1773534412156,0.08331558,71206.0,71183.0,0.4706]
[1773534412363,0.08353559,71206.0,71184.0,0.08082766]
[1773534412597,0.07021978,71205.0,71185.0,0.07023951]
[1773534412781,0.08584257,71204.0,71185.0,0.07023951]
[1773534412936,0.08584257,71204.0,71184.0,0.07023951]
[1773534412937,0.08584257,71204.0,71186.0,0.0014]
[1773534413137,0.08584257,71204.0,71184.0,0.07024]
[1773534413375,0.08584257,71204.0,71185.0,0.0014]
[1773534413810,0.08584257,71204.0,71183.0,0.001]
[1773534414096,0.08584257,71204.0,71183.0,0.07124077]
[1773534414451,0.08584257,71204.0,71183.0,0.07024077]
[1773534415274,0.08444257,71202.0,71183.0,0.07024077]
[1773534416284,0.08444257,71202.0,71182.0,0.07024225]
[1773534416463,0.08444257,71202.0,71183.0,0.07024077]
[1773534416669,0.07022176,71203.0,71182.0,0.0014]
[1773534416670,0.08444257,71200.0,71182.0,0.0014]
[1773534416869,0.08444257,71200.0,71179.0,0.0001512]
[1773534416870,0.08444257,71200.0,71179.0,0.0015512]
[1773534417059,0.08444257,71200.0,71179.0,0.0001512]
[1773534417260,0.0702257,71199.0,71179.0,0.0001512]
[1773534417496,0.08444257,71198.0,71179.0,0.0001512]
[1773534419638,0.07022767,71197.0,71172.0,0.11241942]
[1773534419839,0.08444257,71196.0,71172.0,0.00055117]
[1773534420204,0.08444257,71196.0,71172.0,0.0708032]
[1773534421015,0.0014,71195.0,71179.0,0.0002]
[1773534421304,0.08444257,71194.0,71172.0,0.0708034]
[1773534421745,0.08444257,71192.0,71172.0,0.0708034]
[1773534422628,0.08444257,71192.0,71162.0,0.0017171]
[1773534422891,0.08444257,71190.0,71163.0,0.0718609]
[1773534423106,0.08444257,71190.0,71163.0,0.0016]
[1773534423107,0.08444257,71188.0,71163.0,0.0016]
[1773534423255,0.08080752,71189.0,71163.0,0.0016]
[1773534423256,0.08444257,71186.0,71163.0,0.0016]
[1773534423435,0.08444257,71186.0,71163.0,0.0002]
[1773534423629,0.08444257,71186.0,71163.0,0.0016]
[1773534424035,0.08444257,71186.0,71163.0,0.0002]
[1773534424036,0.08444257,71184.0,71163.0,0.0002]
[1773534425138,0.08444257,71184.0,71162.0,0.0003171]
[1773534426072,0.08444257,71182.0,71162.0,0.0003171]
[1773534426270,0.0014,71181.0,71162.0,0.0003171]
[1773534426473,0.08444257,71180.0,71162.0,0.0003171]
[1773534427560,0.08444257,71180.0,71162.0,0.07057922]
[1773534428295,0.08444257,71178.0,71162.0,0.07057922]
[1773534430387,0.08409149,71176.0,71162.0,0.07057922]
[1773534430690,0.07024741,71177.0,71162.0,0.07057922]
[1773534430691,0.08584257,71175.0,71162.0,0.0003171]
[1773534431049,0.08584257,71175.0,71157.0,0.0014]
[1773534431460,0.08584257,71175.0,71154.0,0.00035126]
[1773534432084,0.08684257,71175.0,71154.0,0.00055126]
[1773534432255,0.07025037,71174.0,71154.0,0.00055126]
[1773534432482,0.08444257,71173.0,71154.0,0.00055126]
[1773534434482,0.08444257,71171.0,71154.0,0.00055126]
[1773534435914,0.08444257,71171.0,71154.0,0.07082106]
[1773534437198,0.08444257,71169.0,71154.0,0.07082106]
[1773534437398,0.08584257,71168.0,71154.0,0.07082106]
[1773534438542,0.08584257,71168.0,71154.0,0.07092863]
[1773534439111,0.07025728,71167.0,71154.0,0.07092863]
[1773534439317,0.15469985,71167.0,71154.0,0.07092863]
[1773534441151,0.6264558,71190.0,71154.0,0.07092863]
[1773534441152,0.07023655,71188.0,71155.0,0.08082766]
[1773534441327,0.08584257,71187.0,71155.0,0.08082766]
[1773534442745,0.0014,71186.0,71155.0,0.08082766]
[1773534442944,0.08597642,71185.0,71155.0,0.08082766]
[1773534443169,0.0702405,71184.0,71156.0,0.07026814]
[1773534443434,0.08457642,71183.0,71157.0,0.08870002]
[1773534443657,0.08457642,71183.0,71159.0,0.08870002]
[1773534443857,0.08457642,71181.0,71159.0,0.08870002]
[1773534444063,0.08457642,71181.0,71160.0,0.0014]
[1773534445174,0.07024445,71180.0,71161.0,0.0702632]
[1773534445377,0.08457642,71179.0,71161.0,0.0702632]
[1773534446792,0.08457642,71179.0,71154.0,0.00065883]
[1773534446793,0.08457642,71179.0,71151.0,0.07061296]
[1773534446998,0.08468383,71179.0,71151.0,0.07061296]
[1773534447197,0.08457642,71177.0,71151.0,0.07061296]
[1773534447534,0.08457642,71175.0,71151.0,0.07201296]
[1773534448176,0.08457642,71175.0,71151.0,0.07061296]
[1773534448383,0.08457642,71175.0,71151.0,0.07201296]
[1773534449194,0.08457642,71175.0,71151.0,0.07061296]
[1773534449399,0.08457642,71173.0,71151.0,0.07201296]
[1773534450718,0.08457642,71173.0,71147.0,0.0002]
[1773534450719,0.08457642,71171.0,71123.0,1e-08]
[1773534450942,0.0014,71172.0,71123.0,1e-08]
[1773534450943,0.08457642,71148.0,71123.0,1e-08]
[1773534451125,0.08457642,71146.0,71119.0,0.00175143]
[1773534451323,0.08457642,71144.0,71119.0,0.00175143]
[1773534451522,0.08457642,71144.0,71119.0,0.00035143]
[1773534451523,0.13993341,71144.0,71119.0,0.00035143]
[1773534451674,0.070279,71145.0,71120.0,0.0014]
[1773534451675,0.08457642,71142.0,71120.0,0.0014]
[1773534451878,0.08457642,71140.0,71120.0,0.0014]
[1773534452083,0.08457642,71140.0,71120.0,0.00175865]
[1773534452410,0.070279,71145.0,71120.0,0.00175865]
[1773534452411,0.0014,71139.0,71120.0,0.00175865]
[1773534452723,0.0014,71139.0,71120.0,0.00035865]
[1773534452724,0.08457642,71138.0,71120.0,0.00035865]
[1773534453313,0.07028691,71137.0,71120.0,0.00035865]
[1773534453512,0.08457642,71136.0,71120.0,0.00035865]
[1773534453889,0.08457642,71136.0,71121.0,0.0014]
[1773534454895,0.07028691,71137.0,71121.0,0.07170272]
[1773534455091,0.001,71136.0,71121.0,0.07170272]
[1773534455292,0.07028888,71135.0,71121.0,0.0014]
[1773534455592,0.07028888,71135.0,71122.0,0.0014]
[1773534455818,0.001,71136.0,71123.0,0.08870002]
[1773534456022,0.07028405,71140.0,71123.0,0.08870002]
[1773534456627,0.001,71136.0,71123.0,0.08870002]
[1773534456873,0.07028405,71140.0,71123.0,0.08870002]
[1773534457386,0.14571538,71149.0,71124.0,0.07029975]
[1773534457549,0.0014,71147.0,71125.0,0.08720823]
[1773534457719,0.0702769,71148.0,71125.0,0.08720823]
[1773534457924,0.0850106,71147.0,71125.0,0.08720823]
[1773534458552,0.0864106,71147.0,71125.0,0.08720823]
[1773534458923,0.0850106,71147.0,71125.0,0.08720823]
[1773534459166,0.0864106,71147.0,71125.0,0.08720823]
[1773534459572,0.15528861,71146.0,71126.0,0.15750601]
[1773534459946,0.0850106,71145.0,71126.0,0.15750601]
[1773534460621,0.0850106,71145.0,71125.0,0.07029811]
[1773534460826,0.07027801,71146.0,71126.0,0.08720823]
[1773534461662,0.07027801,71146.0,71127.0,0.07029679]
[1773534461850,0.07027801,71146.0,71128.0,0.08860823]
[1773534462785,0.07027801,71146.0,71128.0,0.0014]
[1773534462984,0.07027801,71146.0,71128.0,0.08860823]
[1773534463287,0.15528861,71146.0,71128.0,0.08860823]
[1773534464408,0.15528861,71146.0,71129.0,0.07029481]
[1773534464902,0.00022001,71145.0,71129.0,0.07029481]
[1773534465520,0.08523061,71145.0,71129.0,0.07029481]
[1773534466493,0.07027999,71144.0,71129.0,0.15750304]
[1773534469872,0.07027999,71144.0,71130.0,0.08392904]
[1773534471027,0.07027999,71144.0,71131.0,0.07029283]
[1773534471826,0.07027999,71144.0,71131.0,0.07014657]
[1773534474522,0.15983472,71144.0,71131.0,0.07014657]
[1773534477847,0.13977517,71143.0,71131.0,0.07014657]
[1773534478161,0.13977517,71142.0,71131.0,0.07014657]
[1773534478466,0.15983472,71144.0,71131.0,0.07014657]
[1773534478467,0.13977517,71141.0,71131.0,0.07014657]
[1773534478758,0.13977517,71140.0,71131.0,0.07014657]
[1773534478967,0.13977517,71139.0,71131.0,0.07014657]
[1773534479162,0.13977517,71138.0,71131.0,0.07014657]
[1773534479492,0.13977517,71137.0,71131.0,0.07014657]
[1773534479677,0.13977517,71136.0,71131.0,0.07014657]
[1773534479829,0.07028504,71139.0,71131.0,0.07014657]
[1773534479830,0.07028504,71139.0,71132.0,0.0014]
[1773534481471,0.15983472,71144.0,71132.0,0.07169109]
[1773534481472,0.07028098,71143.0,71132.0,0.07169109]
[1773534481697,0.07028098,71143.0,71132.0,0.07169166]
[1773534481841,0.15983571,71143.0,71132.0,0.07169166]
[1773534482465,0.15983571,71143.0,71132.0,0.07029166]
[1773534482677,0.15983571,71143.0,71133.0,0.0014]
[1773534482880,0.15983571,71143.0,71134.0,0.0014]
[1773534483108,0.15983571,71143.0,71134.0,0.00060977]
[1773534485127,0.07028098,71143.0,71134.0,0.00060977]
[1773534485323,0.07028098,71143.0,71134.0,0.07089865]
[1773534485637,0.00022001,71144.0,71118.0,0.07030474]
[1773534485638,0.00022001,71144.0,71135.0,0.0014]
[1773534485840,0.00022001,71144.0,71136.0,0.0014]
[1773534486044,0.07050031,71144.0,71137.0,0.07028691]
[1773534486202,0.00022001,71144.0,71137.0,0.07028691]
[1773534486406,0.07050011,71144.0,71137.0,0.07028691]
[1773534487013,0.00022001,71144.0,71137.0,0.07028691]
[1773534488655,0.00022001,71144.0,71137.0,0.06993548]
[1773534489265,0.00022001,71152.0,71138.0,0.01229406]
[1773534489491,0.00022001,71152.0,71139.0,0.01229406]
[1773534490387,0.08070458,71158.0,71139.0,0.01229406]
[1773534490388,0.01043772,71158.0,71141.0,0.01223453]
[1773534490585,0.01043772,71158.0,71143.0,0.01223453]
[1773534491016,0.08070405,71158.0,71143.0,0.01223453]
[1773534491220,0.00035135,71154.0,71143.0,0.01223453]
[1773534491585,0.00035135,71154.0,71144.0,0.05922594]
[1773534491787,0.00045877,71154.0,71144.0,0.05922594]
[1773534492124,0.00045877,71154.0,71145.0,0.070279]
[1773534492966,0.00022001,71152.0,71145.0,0.070279]
[1773534494108,0.00045877,71154.0,71145.0,0.070279]
[1773534494908,0.00045877,71154.0,71145.0,0.06544787]
[1773534496707,0.00045877,71154.0,71145.0,0.0652988]
[1773534498907,0.08955473,71153.0,71145.0,0.0652988]
[1773534499123,0.08955473,71153.0,71146.0,0.0014]
[1773534499328,0.08955473,71153.0,71147.0,0.0014]
[1773534499912,0.07072977,71154.0,71143.0,0.070279]
[1773534500254,0.00067878,71154.0,71144.0,0.06062594]
[1773534500909,0.00067878,71154.0,71145.0,0.070279]
[1773534501728,0.01043772,71158.0,71148.0,0.05922594]
[1773534501910,0.01079631,71158.0,71148.0,0.05922594]
[1773534502473,0.01079631,71158.0,71148.0,0.05436784]
[1773534502945,0.01079631,71158.0,71149.0,0.07027505]
[1773534503152,0.01079631,71158.0,71150.0,0.0014]
[1773534504837,0.01079631,71158.0,71151.0,0.07027308]
[1773534507278,0.01079631,71158.0,71150.0,0.07167308]
[1773534507449,0.08770825,71157.0,71150.0,0.07167393]
[1773534507646,0.08770825,71157.0,71150.0,0.07068433]
[1773534507870,0.08770825,71157.0,71150.0,0.07027393]
[1773534508074,0.08770825,71157.0,71151.0,0.0014]
[1773534508276,0.08770825,71157.0,71150.0,0.07027393]
[1773534508526,0.08770825,71157.0,71152.0,0.0014]
[1773534508880,0.07026726,71157.0,71153.0,0.0014]
[1773534509086,0.08770825,71156.0,71153.0,0.0014]
[1773534509424,0.08770825,71156.0,71154.0,0.0014]
[1773534509571,0.08770825,71156.0,71153.0,0.0014]
[1773534510017,0.08770825,71156.0,71140.0,0.12950932]
[1773534510252,0.08770825,71156.0,71142.0,0.293607]
[1773534510523,0.08770825,71156.0,71145.0,0.0002]
[1773534510825,0.08770825,71154.0,71146.0,0.0014]
[1773534512686,0.08770825,71154.0,71140.0,0.05922594]
[1773534512687,0.08770825,71154.0,71133.0,0.0002]
[1773534512915,0.08770825,71152.0,71136.0,0.0014]
[1773534513113,0.0702711,71153.0,71133.0,0.0704906]
[1773534513114,0.08770825,71150.0,71133.0,0.0704906]
[1773534513479,0.08770825,71150.0,71137.0,0.0014]
[1773534513772,0.08770825,71150.0,71138.0,0.0014]
[1773534516732,0.07027505,71149.0,71130.0,0.10806225]
[1773534516907,0.08770825,71148.0,71132.0,0.4706]
[1773534517804,0.08770825,71148.0,71133.0,0.0014]
[1773534518310,0.08770825,71148.0,71134.0,0.0014]
[1773534518714,0.08770825,71148.0,71130.0,0.07029372]
[1773534518916,0.08770825,71146.0,71131.0,0.0014]
[1773534519085,0.08770825,71144.0,71131.0,0.0014]
[1773534519288,0.08770825,71144.0,71132.0,0.0014]
[1773534519489,0.08770825,71144.0,71138.0,0.0002]
[1773534520671,0.08870825,71144.0,71138.0,0.0002]
[1773534521170,0.08770825,71142.0,71138.0,0.0002]
[1773534521356,0.08770825,71142.0,71132.0,0.0014]
[1773534521570,0.08770825,71142.0,71132.0,0.00095997]
[1773534522449,0.08870825,71142.0,71132.0,0.00095997]
[1773534522771,0.08770825,71142.0,71132.0,0.00095997]
[1773534525002,0.08770825,71140.0,71130.0,0.0002]
[1773534526457,0.08770825,71140.0,71130.0,0.0016]
[1773534526875,0.07028493,71139.0,71130.0,0.0016]
[1773534527706,0.15799318,71139.0,71130.0,0.0016]
[1773534529904,0.15799318,71139.0,71124.0,0.07029948]
[1773534529905,0.08896205,71138.0,71124.0,0.07029948]